[Event "DVM U20w 2019"]
[Site "Braunschweig"]
[Date "2019.12.27"]
[Round "2"]
[White "Stelter, Finja"]
[Black "Kung, Fanny"]
[Result "0-1"]
[ECO "B01"]
[WhiteElo "1054"]
[BlackElo "1426"]
[Annotator "NA"]
[PlyCount "150"]
[EventDate "2019.12.27"]
[EventType "team-tourn"]
[EventRounds "7"]
[EventCountry "GER"]
[SourceTitle "playchess.com"]
[Source "ChessBase"]
[SourceQuality "1"]
[WhiteTeam "SK Lehrte 1919"]
[BlackTeam "Leegebrucher SF"]
[TimeControl "40/5400+30:1800+30"]

1. e4 {[%emt 0:00:00]} d5 {[%emt 0:00:00]} 2. exd5 {[%emt 0:00:00]} Qxd5 {[%emt 0:00:00]} 3. Nc3 {[%emt 0:00:00]} Qd6 {[%emt 0:00:00]} 4. Nf3 {[%emt 0:00:16]} Nf6 {[%emt 0:00:00]} 5. d4 {[%emt 0:00:12]} a6 {[%emt 0:00:08]} 6. g3 {[%emt 0:00:13]} Bg4 {[%emt 0:02:34]} 7. Bg2 {[%emt 0:00:51]} Nc6 {[%emt 0:02:48]} 8. a3 {[%emt 0:01:06]} e6 {[%emt 0:04:51]} 9. Bf4 {[%emt 0:01:10]} Qd7 {[%emt 0:01:03]} 10. Qd2 {[%emt 0:01:41]} Bd6 {[%emt 0:06:22]} 11. Ne5 {[%emt 0:02:03]} Bxe5 {[%emt 0:04:40]} 12. dxe5 {[%emt 0:00:43]} Qxd2+ {[%emt 0:00:10]} 13. Kxd2 {[%emt 0:00:27]} O-O-O+ {[%emt 0:00:44]} 14. Kc1 {[%emt 0:00:40]} Nd5 {[%emt 0:01:47]} 15. Nxd5 {[%emt 0:01:59]} exd5 {[%emt 0:01:55]} 16. Bg5 {[%emt 0:01:12]} Rd7 {[%emt 0:02:17]} 17. Re1 {[%emt 0:01:50]} Re8 {[%emt 0:01:27]} 18. f3 {[%emt 0:00:55]} Bf5 {[%emt 0:03:57]} 19. g4 {[%emt 0:00:41]} Bg6 {[%emt 0:00:14]} 20. h4 {[%emt 0:00:34]} Nd4 {[%emt 0:11:14]} 21. Rd1 {[%emt 0:03:32]} Nxc2 {[%emt 0:06:22]} 22. Ra2 {[%emt 0:00:21]} h6 {[%emt 0:08:44]} 23. h5 {[%emt 0:01:11]} hxg5 {[%emt 0:01:42]} 24. hxg6 {[%emt 0:00:09]} Ne3 {[%emt 0:00:09]} 25. Rd2 {[%emt 0:01:21]} Nxg2 {[%emt 0:00:24]} 26. Rxg2 {[%emt 0:00:09]} Rxe5 {[%emt 0:00:09]} 27. b4 {[%emt 0:00:48]} f5 {[%emt 0:02:37]} 28. Rae2 {[%emt 0:01:04]} Rde7 {[%emt 0:02:55]} 29. Kd2 {[%emt 0:01:35]} f4 {[%emt 0:02:42]} 30. Rxe5 {[%emt 0:01:11]} Rxe5 {[%emt 0:00:14]} 31. Re2 {[%emt 0:00:28]} Rxe2+ {[%emt 0:00:20]} 32. Kxe2 {[%emt 0:00:04]} Kd7 {[%emt 0:00:33]} 33. Kd3 {[%emt 0:00:28]} Kd6 {[%emt 0:02:00]} 34. Kd4 {[%emt 0:00:07]} b6 {[%emt 0:00:46]} 35. a4 {[%emt 0:00:46]} c5+ {[%emt 0:01:31]} 36. bxc5+ {[%emt 0:00:09]} bxc5+ {[%emt 0:00:07]} 37. Kd3 {[%emt 0:00:08]} Kc6 {[%emt 0:01:00]} 38. Kc3 {[%emt 0:00:23]} Kb6 {[%emt 0:00:18]} 39. Kb3 {[%emt 0:00:10]} Ka5 {[%emt 0:00:14]} 40. Ka3 {[%emt 0:00:12]} c4 {[%emt 0:00:06]} 41. Kb2 {[%emt 0:30:12]} Kxa4 {[%emt 0:30:07]} 42. Kc3 {[%emt 0:00:07]} Kb5 {[%emt 0:00:39]} 43. Kd4 {[%emt 0:00:14]} Kb4 {[%emt 0:03:17]} 44. Kxd5 {[%emt 0:00:12]} c3 {[%emt 0:00:12]} 45. Ke6 {[%emt 0:00:06]} c2 {[%emt 0:00:04]} 46. Kf7 {[%emt 0:00:04]} c1=Q {[%emt 0:00:07]} 47. Kxg7 {[%emt 0:00:09]} Qc7+ {[%emt 0:01:23]} 48. Kh6 {[%emt 0:00:21]} a5 {[%emt 0:01:42]} 49. g7 {[%emt 0:00:03]} Qxg7+ {[%emt 0:00:06]} 50. Kxg7 {[%emt 0:00:05]} a4 {[%emt 0:00:10]} 51. Kg6 {[%emt 0:00:06]} a3 {[%emt 0:00:05]} 52. Kxg5 {[%emt 0:00:05]} a2 {[%emt 0:00:09]} 53. Kxf4 {[%emt 0:00:04]} a1=Q 54. g5 Qg7 {[%emt 0:01:31]} 55. Kf5 {[%emt 0:00:42]} Kc5 {[%emt 0:00:33]} 56. g6 {[%emt 0:00:03]} Kd5 {[%emt 0:00:26]} 57. Kg5 {[%emt 0:00:07]} Ke6 {[%emt 0:01:12]} 58. f4 {[%emt 0:00:16]} Ke7 {[%emt 0:04:11]} 59. f5 {[%emt 0:00:20]} Qh8 {[%emt 0:03:31]} 60. Kf4 {[%emt 0:00:41]} Kf6 {[%emt 0:00:21]} 61. Kg4 {[%emt 0:00:39]} Qh6 {[%emt 0:00:23]} 62. Kf3 {[%emt 0:00:59]} Kxf5 {[%emt 0:00:08]} 63. g7 {[%emt 0:00:18]} Qxg7 {[%emt 0:00:06]} 64. Ke3 {[%emt 0:00:03]} Qg4 {[%emt 0:00:06]} 65. Kd3 {[%emt 0:00:12]} Ke5 {[%emt 0:00:09]} 66. Kc3 {[%emt 0:00:21]} Kd5 {[%emt 0:00:07]} 67. Kd2 {[%emt 0:00:05]} Qh3 {[%emt 0:00:17]} 68. Ke2 {[%emt 0:00:08]} Ke4 {[%emt 0:00:29]} 69. Kd2 {[%emt 0:00:05]} Qg3 {[%emt 0:00:22]} 70. Kc2 {[%emt 0:00:08]} Kd4 {[%emt 0:00:37]} 71. Kb2 {[%emt 0:00:09]} Kc4 {[%emt 0:00:13]} 72. Ka2 {[%emt 0:00:12]} Kb4 {[%emt 0:00:23]} 73. Kb2 {[%emt 0:00:13]} Qh2+ {[%emt 0:00:06]} 74. Kc1 {[%emt 0:00:07]} Kc3 {[%emt 0:00:08]} 75. Kd1 {[%emt 0:00:20]} Qd2# {normal} 0-1

[Event "DVM U20w 2019"]
[Site "Braunschweig"]
[Date "2019.12.27"]
[Round "2"]
[White "Cerkez, Lorena"]
[Black "Peglau, Dora"]
[Result "0-1"]
[ECO "B24"]
[WhiteElo "1000"]
[BlackElo "1502"]
[Annotator "NA"]
[PlyCount "83"]
[EventDate "2019.12.27"]
[EventType "team-tourn"]
[EventRounds "7"]
[EventCountry "GER"]
[SourceTitle "playchess.com"]
[Source "ChessBase"]
[SourceQuality "1"]
[WhiteTeam "Düsseldorfer SK"]
[BlackTeam "Schachzentrum Seeblick"]
[TimeControl "40/5400+30:1800+30"]

1. e4 {[%emt 0:00:00]} c5 {[%emt 0:00:00]} 2. Nc3 {[%emt 0:00:00]} Nc6 {[%emt 0:00:00]} 3. Bb5 {[%emt 0:00:00]} g6 {[%emt 0:00:27]} 4. Bxc6 {[%emt 0:00:11]} bxc6 {[%emt 0:00:13]} 5. d3 {[%emt 0:00:22]} Bg7 {[%emt 0:00:07]} 6. Be3 {[%emt 0:02:19]} d6 {[%emt 0:00:46]} 7. Qd2 {[%emt 0:00:52]} Nf6 {[%emt 0:01:46]} 8. h3 {[%emt 0:00:58]} Rb8 {[%emt 0:01:24]} 9. Rb1 {[%emt 0:00:26]} O-O {[%emt 0:01:50]} 10. Nge2 {[%emt 0:00:11]} Qa5 {[%emt 0:16:05]} 11. O-O {[%emt 0:02:56]} Bb7 {[%emt 0:08:24]} 12. d4 {[%emt 0:23:58]} cxd4 {[%emt 0:00:58]} 13. Nxd4 {[%emt 0:01:34]} c5 {[%emt 0:05:31]} 14. Nde2 {[%emt 0:00:28]} Qc7 {[%emt 0:02:15]} 15. Ng3 {[%emt 0:06:13]} Bc6 {[%emt 0:04:21]} 16. Rfd1 {[%emt 0:06:51]} Rb6 {[%emt 0:05:44]} 17. Bh6 {[%emt 0:05:41]} Qb7 {[%emt 0:01:53]} 18. Bxg7 {[%emt 0:00:23]} Kxg7 {[%emt 0:00:02]} 19. b3 {[%emt 0:09:14]} Nxe4 {[%emt 0:00:58]} 20. Ngxe4 {[%emt 0:00:11]} Bxe4 {[%emt 0:00:17]} 21. Nxe4 {[%emt 0:00:40]} Qxe4 {[%emt 0:00:12]} 22. Re1 {[%emt 0:00:34]} Qb7 {[%emt 0:00:13]} 23. Qc3+ {[%emt 0:00:42]} Kg8 {[%emt 0:03:23]} 24. Re3 {[%emt 0:00:38]} Rc8 {[%emt 0:03:52]} 25. Rg3 {[%emt 0:02:15]} c4 {[%emt 0:01:17]} 26. Qd2 {[%emt 0:01:50]} cxb3 {[%emt 0:01:08]} 27. axb3 {[%emt 0:01:51]} Qc7 {[%emt 0:00:53]} 28. c4 {[%emt 0:01:08]} Qb7 {[%emt 0:00:29]} 29. Qe2 {[%emt 0:01:28]} Rb4 {[%emt 0:01:19]} 30. h4 {[%emt 0:05:58]} Rcxc4 {[%emt 0:01:33]} 31. bxc4 {[%emt 0:01:57]} Rxb1+ {[%emt 0:00:08]} 32. Kh2 {[%emt 0:00:07]} Rb2 {[%emt 0:00:42]} 33. Qf1 {[%emt 0:02:31]} Qe4 {[%emt 0:00:15]} 34. h5 {[%emt 0:01:26]} Rb1 {[%emt 0:01:19]} 35. Qd3 {[%emt 0:01:26]} Qe1 {[%emt 0:01:14]} 36. Re3 {[%emt 0:00:47]} Qh1+ {[%emt 0:01:07]} 37. Kg3 {[%emt 0:00:10]} Rg1 {[%emt 0:00:24]} 38. Qd5 {[%emt 0:00:42]} Rd1 {[%emt 0:08:22]} 39. Qa8+ {[%emt 0:00:51]} Kg7 {[%emt 0:00:08]} 40. Rxe7 {[%emt 0:02:02]} Rd3+ {[%emt 0:02:57]} 41. f3 {[%emt 0:35:40] normal} Rd2 {[%emt 0:31:22] normal} 42. h6+ {[%emt 0:02:51] normal} 0-1

[Event "DVM U20w 2019"]
[Site "Braunschweig"]
[Date "2019.12.27"]
[Round "2"]
[White "Prölß, Clara"]
[Black "Wilhelm, Anna-Lena"]
[Result "0-1"]
[ECO "B50"]
[WhiteElo "1000"]
[BlackElo "1291"]
[Annotator "NA"]
[PlyCount "56"]
[EventDate "2019.12.27"]
[EventType "team-tourn"]
[EventRounds "7"]
[EventCountry "GER"]
[SourceTitle "playchess.com"]
[Source "ChessBase"]
[SourceQuality "1"]
[WhiteTeam "SC Bavaria Regensburg"]
[BlackTeam "SG Blau-Weiß Stadtilm"]
[TimeControl "40/5400+30:1800+30"]

1. e4 {[%emt 0:00:00]} c5 {[%emt 0:00:00]} 2. Nf3 {[%emt 0:00:00]} d6 {[%emt 0:00:00]} 3. Bc4 {[%emt 0:01:35]} Nf6 {[%emt 0:03:16]} 4. Nc3 {[%emt 0:02:34]} e6 {[%emt 0:03:36]} 5. O-O {[%emt 0:05:10]} Be7 {[%emt 0:03:40]} 6. d4 {[%emt 0:02:32]} d5 {[%emt 0:02:13]} 7. exd5 {[%emt 0:04:51]} exd5 {[%emt 0:00:31]} 8. Nxd5 {[%emt 0:02:37]} Nxd5 {[%emt 0:01:01]} 9. dxc5 {[%emt 0:02:38]} Be6 {[%emt 0:01:32]} 10. Be3 {[%emt 0:10:37]} O-O {[%emt 0:00:53]} 11. Bd3 {[%emt 0:11:50]} Nxe3 {[%emt 0:03:27]} 12. fxe3 {[%emt 0:00:50]} Bxc5 {[%emt 0:00:36]} 13. Be4 {[%emt 0:04:33]} Bxe3+ {[%emt 0:06:29]} 14. Kh1 {[%emt 0:00:37]} Nc6 {[%emt 0:02:54]} 15. Ng1 {[%emt 0:06:01]} Qh4 {[%emt 0:06:37]} 16. Qf3 {[%emt 0:03:41]} Bd4 {[%emt 0:04:04]} 17. c3 {[%emt 0:03:56]} Ne5 {[%emt 0:03:12]} 18. Qf4 {[%emt 0:03:38]} Qxf4 {[%emt 0:13:38]} 19. Rxf4 {[%emt 0:00:32]} Be3 {[%emt 0:02:35]} 20. Rh4 {[%emt 0:02:27]} f5 {[%emt 0:04:35]} 21. Bxb7 {[%emt 0:04:50]} Nd3 {[%emt 0:01:35]} 22. h3 {[%emt 0:05:06]} g5 {[%emt 0:05:08]} 23. Rh6 {[%emt 0:04:42]} Rae8 {[%emt 0:07:51]} 24. Rxe6 {[%emt 0:01:29]} Bf4 {[%emt 0:09:17]} 25. Rf1 {[%emt 0:01:20]} Kg7 {[%emt 0:01:23]} 26. Rxe8 {[%emt 0:01:36]} Rxe8 {[%emt 0:00:07]} 27. Rf3 {[%emt 0:01:21] normal} Re3 {[%emt 0:01:29] normal} 28. Rxe3 {[%emt 0:04:05]} Nf2# {normal} 0-1

[Event "DVM U20w 2019"]
[Site "Braunschweig"]
[Date "2019.12.28"]
[Round "3"]
[White "Bardorz, Jana"]
[Black "Miljkovic, Jovana"]
[Result "0-1"]
[ECO "B93"]
[WhiteElo "2054"]
[BlackElo "2021"]
[Annotator "NA RC"]
[PlyCount "42"]
[EventDate "2019.12.27"]
[EventType "team-tourn"]
[EventRounds "7"]
[EventCountry "GER"]
[SourceTitle "playchess.com"]
[Source "ChessBase"]
[SourceQuality "1"]
[WhiteTeam "SC Bavaria Regensburg"]
[BlackTeam "SV Lingen"]
[TimeControl "40/5400+30:1800+30"]

1. e4 {[%emt 0:00:00]} c5 {[%emt 0:00:00]} 2. Nf3 {[%emt 0:00:00]} d6 {[%emt 0:00:00]} 3. d4 {[%emt 0:00:00]} cxd4 {[%emt 0:00:00]} 4. Nxd4 {[%emt 0:00:00]} Nf6 {[%emt 0:00:00]} 5. Nc3 {[%emt 0:00:05]} a6 {[%emt 0:00:00]} 6. f4 {[%emt 0:00:38]} e5 {[%emt 0:00:00]} 7. Nf3 {[%emt 0:00:18]} Nbd7 {[%emt 0:00:00] unterminated} 8. a4 {[%emt 0:03:19]} d5 {[%emt 0:00:02] unterminated} 9. exd5 {[%emt 0:13:41]} e4 {[%emt 0:01:34] unterminated} 10. Ne5 {[%emt 0:04:21] unterminated} Bc5 {[%emt 0:11:51] unterminated} 11. Bc4 {[%emt 0:09:00] unterminated} O-O {[%emt 0:15:44] unterminated} 12. Qe2 {[%emt 0:06:25] unterminated} Nxe5 {[%emt 0:10:19] unterminated} 13. fxe5 {[%emt 0:01:19] unterminated} Ng4 {[%emt 0:10:41] unterminated} 14. Bf4 {[%emt 0:06:17] unterminated} Qb6 {[%emt 0:13:08] unterminated} 15. O-O-O {[%emt 0:06:41] unterminated} Nf2 $1 {[%emt 0:02:56] Double Attack} 16. Nxe4 $19 {[%emt 0:02:15]} (16. h3 $1 $14 {stays ahead.}) 16... Bg4 {[%emt 0:03:02]} 17. Qd2 {[%emt 0:08:53]} Nxe4 {[%emt 0:03:41]} 18. Qe1 {[%emt 0:02:12]} Nf2 {[%emt 0:01:47]} 19. Rd3 {[%emt 0:01:53]} Qb4 {[%emt 0:03:55]} 20. Qxb4 {[%emt 0:02:18]} Nxd3+ {[%emt 0:00:10]} 21. Bxd3 {[%emt 0:00:27]} Bxb4 {[%emt 0:00:05] normal} 0-1

[Event "DVM U20w 2019"]
[Site "Braunschweig"]
[Date "2019.12.28"]
[Round "3"]
[White "Köhler, Inken"]
[Black "Ziegenfuss, Antonia"]
[Result "0-1"]
[ECO "B23"]
[WhiteElo "1998"]
[BlackElo "2052"]
[Annotator "NA RC"]
[PlyCount "66"]
[EventDate "2019.12.27"]
[EventType "team-tourn"]
[EventRounds "7"]
[EventCountry "GER"]
[SourceTitle "playchess.com"]
[Source "ChessBase"]
[SourceQuality "1"]
[WhiteTeam "TuRa Harksheide Norderstedt"]
[BlackTeam "OSG Baden-Baden"]
[TimeControl "40/5400+30:1800+30"]

1. e4 {[%emt 0:00:00]} c5 {[%emt 0:00:00]} 2. Nc3 {[%emt 0:00:00]} e6 {[%emt 0:00:00]} 3. g3 {[%emt 0:00:00] unterminated} Nc6 {[%emt 0:00:27]} 4. Bg2 {[%emt 0:00:11]} Nf6 {[%emt 0:00:38] unterminated} 5. Nf3 {[%emt 0:01:14] unterminated} d5 {[%emt 0:05:12] unterminated} 6. exd5 {[%emt 0:01:37] unterminated} exd5 {[%emt 0:00:52] unterminated} 7. d4 {[%emt 0:05:19] unterminated} cxd4 {[%emt 0:14:44]} 8. Nxd4 {[%emt 0:00:13] unterminated} Bb4 {[%emt 0:00:59] unterminated} 9. O-O {[%emt 0:03:40] unterminated} O-O {[%emt 0:02:09] unterminated} 10. Nce2 {[%emt 0:03:15] unterminated B24: Closed Sicilian: 3 g3 sidelines} Re8 {[%emt 0:12:45] unterminated} (10... h6 11. h3 Re8 12. Nf4 Ne4 13. c3 Bc5 14. Be3 Bb6 15. Re1 Nf6 16. Qd3 Ne5 17. Qc2 Nc4 {1-0 (43) Bartel,M (2641)-Safarli,E (2649) Dubai 2014}) 11. c3 {[%emt 0:01:51] unterminated} Bc5 {[%emt 0:02:56] unterminated} 12. Bg5 {[%emt 0:05:17]} h6 $146 {[%emt 0:07:28]} ({Predecessor:} 12... Bg4 13. f3 Bh5 14. Kh1 Ne5 15. Nf4 Bg6 16. Nb3 Bb6 17. Bxf6 gxf6 18. Qxd5 {0-1 (37) Bjornsson,Y (2101)-McIntosh,D (1739) Edmonton 2003}) 13. Bxf6 {[%emt 0:00:51]} Qxf6 {[%emt 0:00:23]} 14. Bxd5 {[%emt 0:03:23]} Bg4 {[%emt 0:01:15]} 15. Qd2 {[%emt 0:02:57]} Rad8 {[%emt 0:02:19]} 16. Bxc6 {[%emt 0:03:43]} Rxe2 {[%emt 0:02:54]} 17. Qf4 {[%emt 0:04:10]} Qxf4 {[%emt 0:01:39]} 18. gxf4 {[%emt 0:00:04]} Bxd4 {[%emt 0:00:23]} 19. Ba4 {[%emt 0:00:59]} Bh3 {[%emt 0:07:48]} 20. cxd4 {[%emt 0:01:57]} Bxf1 {[%emt 0:00:36]} 21. Rxf1 {[%emt 0:00:41]} Rxd4 {[%emt 0:00:42]} 22. Bb3 {[%emt 0:00:58]} Rxf4 {[%emt 0:01:59]} 23. Kg2 {[%emt 0:01:53]} Rxb2 {[%emt 0:00:29]} 24. Kg3 {[%emt 0:00:33]} g5 {[%emt 0:00:29]} 25. h3 {[%emt 0:02:52]} Kg7 {[%emt 0:01:00]} 26. Bd5 {[%emt 0:01:47]} Rd4 {[%emt 0:01:06]} 27. Bb3 {[%emt 0:00:39]} a5 {[%emt 0:00:25]} 28. Rc1 {[%emt 0:05:45]} a4 {[%emt 0:00:37]} 29. Bc4 {[%emt 0:00:05]} Rf4 {[%emt 0:00:48]} 30. f3 {[%emt 0:00:48]} h5 {[%emt 0:00:23]} 31. h4 {[%emt 0:00:09]} Rxh4 {[%emt 0:00:05]} 32. Bd5 {[%emt 0:00:47]} Rbh2 {[%emt 0:00:17] normal} 33. Rc7 {[%emt 0:00:44]} R4h3# {normal} 0-1

[Event "DVM U20w 2019"]
[Site "Braunschweig"]
[Date "2019.12.28"]
[Round "3"]
[White "Moenster, Madita"]
[Black "Pavlov, Liliane"]
[Result "0-1"]
[ECO "B90"]
[WhiteElo "1956"]
[BlackElo "1623"]
[Annotator "NA"]
[PlyCount "86"]
[EventDate "2019.12.27"]
[EventType "team-tourn"]
[EventRounds "7"]
[EventCountry "GER"]
[SourceTitle "playchess.com"]
[Source "ChessBase"]
[SourceQuality "1"]
[WhiteTeam "SV Lingen"]
[BlackTeam "SC Bavaria Regensburg"]
[TimeControl "40/5400+30:1800+30"]

1. e4 {[%emt 0:00:00]} c5 {[%emt 0:00:00]} 2. Nf3 {[%emt 0:00:00]} d6 {[%emt 0:00:00]} 3. d4 {[%emt 0:00:00]} cxd4 {[%emt 0:00:00]} 4. Nxd4 {[%emt 0:00:00]} Nf6 {[%emt 0:00:00]} 5. Nc3 {[%emt 0:00:16]} a6 {[%emt 0:00:11]} 6. f3 {[%emt 0:01:51]} e5 {[%emt 0:00:35]} 7. Nb3 {[%emt 0:00:08]} Be6 {[%emt 0:01:10] unterminated} 8. Be3 {[%emt 0:00:48] unterminated} Nbd7 {[%emt 0:03:27]} 9. Qd2 {[%emt 0:01:26] unterminated} Be7 {[%emt 0:00:38]} 10. O-O-O {[%emt 0:00:55] unterminated} O-O {[%emt 0:02:34] unterminated} 11. g4 {[%emt 0:01:48]} b5 {[%emt 0:01:45] unterminated} 12. Kb1 {[%emt 0:05:09] unterminated unterminated. B90: Sicilian Najdorf: Unusual White 6th moves, 6 Be3 Ng4 and 6 Be3 e5} Nb6 {[%emt 0:04:37] unterminated} 13. g5 {[%emt 0:09:26] unterminated} Nh5 {[%emt 0:04:48] unterminated} 14. Nd5 {[%emt 0:05:27] unterminated} (14. Na5 Rc8 15. a3 g6 16. h4 Ng3 17. Rh2 Nxf1 18. Rxf1 h5 19. Bxb6 Qxb6 20. Nd5 Bxd5 21. exd5 {½-½ (35) Navara,D (2739)-Wojtaszek,R (2722) Prague 2019}) 14... Bxd5 {[%emt 0:02:47] unterminated} 15. exd5 {[%emt 0:00:08] unterminated} Nc4 {[%emt 0:01:12] unterminated} 16. Bxc4 $1 {[%emt 0:02:03] unterminated} bxc4 {[%emt 0:08:01] unterminated} 17. Na5 {[%emt 0:02:46] unterminated} c3 {[%emt 0:16:20] unterminated} 18. Qxc3 {[%emt 0:01:56] unterminated} Bxg5 {[%emt 0:02:42] unterminated} 19. Nb7 {[%emt 0:09:56] unterminated} Qe7 $146 {[%emt 0:01:39] unterminated} ({Predecessor:} 19... Qd7 20. Bxg5 Qxb7 {1-0 (49) Kritz,L (2544)-Sondermann,J (2164) Biel 2005}) 20. Nxd6 {[%emt 0:15:11] unterminated} Bxe3 {[%emt 0:06:07] unterminated} 21. Nf5 {[%emt 0:00:21] Double Attack unterminated} Qf6 {[%emt 0:03:44]} 22. Nxe3 {[%emt 0:00:41] unterminated} Qxf3 {[%emt 0:05:21]} 23. Rhf1 {[%emt 0:01:51] unterminated} Qh3 {[%emt 0:01:08] unterminated} 24. Qd2 {[%emt 0:03:38] unterminated} f5 {[%emt 0:06:50] unterminated} 25. d6 {[%emt 0:08:15] unterminated} f4 {[%emt 0:03:43] unterminated} 26. Qd5+ {[%emt 0:01:40]} Kh8 {[%emt 0:00:29] unterminated} 27. Nc4 {[%emt 0:00:54] unterminated} Qxh2 {[%emt 0:03:03] unterminated} 28. Rh1 {[%emt 0:03:59] unterminated} Qe2 {[%emt 0:00:35]} 29. Nxe5 {[%emt 0:01:06]} g6 {[%emt 0:01:06]} 30. d7 {[%emt 0:04:54]} Nf6 {[%emt 0:02:00]} 31. Qa5 {[%emt 0:04:58]} Qe4 {[%emt 0:02:15]} 32. d8=Q {[%emt 0:03:14]} Raxd8 {[%emt 0:00:33]} 33. Nf7+ {[%emt 0:01:36]} Rxf7 {[%emt 0:00:39]} 34. Qxd8+ {[%emt 0:01:03]} Kg7 {[%emt 0:00:09]} 35. Rhe1 {[%emt 0:01:36]} Qf3 {[%emt 0:02:59]} 36. Re7 {[%emt 0:04:27]} Qxd1+ {[%emt 0:02:02]} 37. Qxd1 {[%emt 0:00:07]} Rxe7 {[%emt 0:00:05]} 38. c4 {[%emt 0:00:38] unterminated} Ne4 {[%emt 0:01:30] unterminated} 39. c5 {[%emt 0:01:33]} f3 {[%emt 0:01:12] unterminated} 40. Kc2 {[%emt 0:03:03] unterminated} (40. Qd8 $142 Re5 41. Qb8 (41. Qd4 $2 Kf6 $19)) 40... f2 {[%emt 0:01:34] unterminated} 41. Qd4+ {[%emt 0:05:46] unterminated} Kh6 {[%emt 0:11:54] unterminated} 42. Qe3+ {[%emt 0:03:45] unterminated} g5 {[%emt 0:00:37] unterminated} 43. Qf3 $19 {[%emt 0:02:46]} Kg7 {[%emt 0:05:11] normal} 0-1

[Event "DVM U20w 2019"]
[Site "Braunschweig"]
[Date "2019.12.28"]
[Round "3"]
[White "Wiesner, Paula"]
[Black "Peglau, Mirjam"]
[Result "1/2-1/2"]
[ECO "E46"]
[WhiteElo "1955"]
[BlackElo "1916"]
[Annotator "NA"]
[PlyCount "36"]
[EventDate "2019.12.27"]
[EventType "team-tourn"]
[EventRounds "7"]
[EventCountry "GER"]
[SourceTitle "playchess.com"]
[Source "ChessBase"]
[SourceQuality "1"]
[WhiteTeam "SC Borussia Lichtenberg"]
[BlackTeam "Schachzentrum Seeblick"]
[TimeControl "40/5400+30:1800+30"]

1. d4 {[%emt 0:00:00]} Nf6 {[%emt 0:00:00]} 2. c4 {[%emt 0:00:00]} e6 {[%emt 0:00:00]} 3. Nc3 {[%emt 0:00:00]} Bb4 {[%emt 0:00:00]} 4. e3 {[%emt 0:00:00]} O-O {[%emt 0:00:03]} 5. Nge2 {[%emt 0:00:06]} Re8 {[%emt 0:00:14]} 6. a3 {[%emt 0:00:26]} Bf8 {[%emt 0:00:07] unterminated} 7. Ng3 {[%emt 0:03:49] unterminated} d5 {[%emt 0:00:16] unterminated} 8. cxd5 {[%emt 0:03:01] unterminated} exd5 {[%emt 0:00:12]} 9. Bd3 {[%emt 0:00:38] unterminated} c6 {[%emt 0:02:26] unterminated} 10. O-O {[%emt 0:00:29]} Bg4 {[%emt 0:01:38] unterminated} 11. Qc2 {[%emt 0:03:47] unterminated} Nbd7 {[%emt 0:03:21] unterminated} 12. Kh1 {[%emt 0:06:53] unterminated} Bd6 {[%emt 0:03:54] unterminated} 13. Nf5 {[%emt 0:06:19] unterminated} Bxf5 {[%emt 0:01:25]} 14. Bxf5 {[%emt 0:00:04] unterminated} Nf8 {[%emt 0:07:03] unterminated} 15. f3 {[%emt 0:04:20] unterminated} g6 {[%emt 0:02:39] unterminated} 16. Bd3 {[%emt 0:06:21] unterminated} Ne6 $11 {[%emt 0:03:18]} 17. Qf2 {[%emt 0:05:26]} Qb6 {[%emt 0:05:15]} 18. e4 {[%emt 0:04:11] normal} Qxd4 1/2-1/2